bitfinex/quotes_SOLUSD_20250602
["timestamp","ask_amount","ask_price","bid_price","bid_amount"]
[1748901499807,16.33822332,155.34,155.29,16.33822332]
[1748901499978,16.33822332,155.35,155.3,16.33822332]
[1748901501291,16.33822332,155.35,155.31,22.53557401]
[1748901501469,16.33822332,155.35,155.32,10.48]
[1748901501888,9.38351608,155.36,155.32,10.48]
[1748901502092,16.33822332,155.36,155.32,10.48]
[1748901502487,26.9980303,155.38,155.32,10.48]
[1748901502689,16.33822332,155.36,155.32,10.48]
[1748901503410,25.4247329,155.36,155.33,6.43790639]
[1748901508711,26.9980303,155.38,155.33,6.43790639]
[1748901509015,25.4247329,155.36,155.33,6.43790639]
[1748901509224,26.9980303,155.38,155.33,6.43790639]
[1748901509528,25.4247329,155.37,155.33,6.43790639]
[1748901510292,25.4247329,155.36,155.33,6.43790639]
[1748901511198,0.9980303,155.38,155.34,25.4247329]
[1748901512800,0.9980303,155.38,155.35,22.52977147]
[1748901513425,0.9980303,155.38,155.35,47.95450437]
[1748901514597,0.9980303,155.38,155.36,25.4247329]
[1748901514802,0.9980303,155.38,155.37,16.89624895]
[1748901515606,0.9980303,155.38,155.37,42.32098185]
[1748901520540,0.9980303,155.38,155.37,61.11279228]
[1748901521707,0.9980303,155.38,155.37,35.68805938]
[1748901523004,0.9980303,155.38,155.37,16.89624895]
[1748901533528,26.4227632,155.38,155.37,10.46]
[1748901534318,26.4227632,155.38,155.37,16.89624895]
[1748901534514,26.4227632,155.38,155.34,3.28779992]
[1748901534833,25.4247329,155.35,155.34,3.28779992]
[1748901535031,25.4247329,155.35,155.34,9.72529187]
[1748901538518,7.4207303,155.38,155.34,9.72529187]
[1748901538717,25.4247329,155.36,155.34,9.72529187]
[1748901541215,7.4207303,155.38,155.34,9.72529187]
[1748901541414,25.4247329,155.36,155.34,9.72529187]
[1748901545036,146.4,155.37,155.34,51.24375465]
[1748901545221,146.4,155.37,155.36,25.4247329]
[1748901546022,146.4,155.37,155.34,25.81902175]
[1748901546228,146.4,155.37,155.35,25.4247329]
[1748901546623,146.4,155.37,155.36,6.43666323]
[1748901548635,146.4,155.37,155.35,6.43707756]
[1748901549143,146.4,155.37,155.35,31.86181046]
[1748901550338,0.9980303,155.38,155.35,47.95450437]
[1748901556939,0.9980303,155.38,155.36,25.4247329]
[1748901558356,0.9980303,155.38,155.37,10.44]
[1748901559142,0.9980303,155.38,155.37,42.30098185]
[1748901562238,0.9980303,155.38,155.37,16.87624895]
[1748901562747,0.9980303,155.38,155.37,61.09279228]
[1748901565338,0.9980303,155.38,155.37,134.80181542]
[1748901565650,2.60107429,155.42,155.41,19.07613357]
[1748901565844,2.60107429,155.42,155.41,84.26086647]
[1748901566049,2.60107429,155.42,155.41,90.69545883]
[1748901566250,1.6318,155.54,155.45,44.64964886]
[1748901566433,37.9247329,155.57,155.52,25.4247329]
[1748901566634,12.5,155.57,155.53,10.42]
[1748901566836,37.9247329,155.57,155.53,10.42]
[1748901567657,37.9247329,155.57,155.54,6.42921435]
[1748901568235,12.5,155.57,155.54,6.42921435]
[1748901568453,25.4247329,155.55,155.53,10.42]
[1748901568744,25.4247329,155.54,155.53,10.42]
[1748901569738,31.85394725,155.54,155.48,6.43155934]
[1748901569943,25.4247329,155.51,155.49,10.42]
[1748901571254,25.4247329,155.5,155.49,10.42]
[1748901572041,152.599,155.52,155.49,10.42]
[1748901572254,25.4247329,155.5,155.49,10.42]
[1748901574061,31.85560106,155.5,155.49,10.42]
[1748901574370,31.85560106,155.5,155.45,10.4]
[1748901574371,97.57560106,155.5,155.45,10.4]
[1748901574667,25.4247329,155.46,155.45,10.4]
[1748901581364,25.4247329,155.46,155.45,16.83293663]
[1748901582663,146.4,155.48,155.45,16.83293663]
[1748901582968,25.4247329,155.47,155.45,16.83293663]
[1748901586063,146.4,155.48,155.45,16.83293663]
[1748901586266,25.4247329,155.47,155.45,16.83293663]
[1748901589752,146.4,155.48,155.45,16.83293663]
[1748901589954,25.4247329,155.47,155.45,16.83293663]
[1748901590666,171.8247329,155.48,155.45,16.83293663]
[1748901591773,171.8247329,155.48,155.45,32.91527821]
[1748901592468,146.4,155.48,155.45,32.91527821]
[1748901600452,171.8247329,155.48,155.45,32.91527821]
[1748901600666,25.4247329,155.47,155.45,32.91527821]
[1748901600979,25.4247329,155.47,155.45,16.83293663]
[1748901601492,146.4,155.48,155.45,32.91527821]
[1748901601976,173.3665329,155.51,155.46,18.79181043]
[1748901602277,1.6526,155.55,155.48,44.50086647]
[1748901602472,25.4247329,155.54,155.49,80.0906278]
[1748901602670,27.0773329,155.55,155.5,10.4]
[1748901603362,25.4247329,155.54,155.5,10.4]
[1748901603767,27.0773329,155.55,155.5,10.4]
[1748901603962,25.4247329,155.55,155.51,18.79181043]
[1748901604370,25.4247329,155.54,155.51,22.50659121]
[1748901604981,25.4247329,155.53,155.51,22.50659121]
[1748901605484,25.4247329,155.52,155.51,22.50659121]
[1748901606751,25.4247329,155.52,155.51,6.43045463]
[1748901608459,25.4247329,155.53,155.51,6.43045463]
[1748901608660,25.4247329,155.52,155.51,6.43045463]
[1748901611665,25.4247329,155.53,155.51,6.43045463]
[1748901612277,171.8247329,155.54,155.51,22.50659121]
[1748901613005,146.4,155.54,155.51,22.50659121]
[1748901613174,146.4,155.54,155.52,18.64964886]
[1748901613489,25.4247329,155.57,155.52,44.07438176]
[1748901613694,146.4,155.58,155.53,47.92842993]
[1748901613870,171.8247329,155.58,155.53,47.92842993]
[1748901614773,171.8247329,155.58,155.53,80.07656855]
[1748901616067,146.4,155.58,155.54,44.21654333]
[1748901616273,146.4,155.58,155.55,10.38]
[1748901616684,173.9235,155.63,155.56,18.79181043]
[1748901616884,147.9235,155.63,155.56,18.79181043]
[1748901617083,25.4247329,155.61,155.56,44.21654333]
[1748901617281,25.4247329,155.6,155.56,18.79181043]
[1748901617692,25.4247329,155.6,155.57,22.4979109]
[1748901618006,0.885565,155.69,155.59,51.4247329]
[1748901618171,25.4247329,155.68,155.63,25.4247329]
[1748901618375,25.4247329,155.64,155.6,10.38]
[1748901618571,45.9167,155.68,155.6,10.38]
[1748901618572,25.4247329,155.62,155.6,10.38]
[1748901618871,71.9167,155.68,155.6,10.38]
[1748901619065,25.4247329,155.61,155.6,10.38]
[1748901619271,41.264,155.64,155.6,10.38]
[1748901619574,25.4247329,155.62,155.6,10.38]
[1748901619772,25.4247329,155.62,155.61,6.42632221]
[1748901620169,25.4247329,155.63,155.61,6.42632221]
[1748901620370,39.66,155.65,155.61,22.49212774]
[1748901620696,6.2567,155.68,155.61,47.91686064]
[1748901620887,25.4247329,155.67,155.61,22.49212774]
[1748901621196,25.4247329,155.67,155.62,25.4247329]
[1748901621495,25.4247329,155.67,155.63,18.79181043]
[1748901621684,25.4247329,155.67,155.64,22.48779233]
[1748901621884,27.9243979,155.69,155.65,10.38]
[1748901623278,27.9243979,155.69,155.68,25.4247329]
[1748901623279,0.885565,155.69,155.68,25.4247329]
[1748901623494,0.885565,155.69,155.68,44.21654333]
[1748901623672,0.885565,155.69,155.67,25.4247329]
[1748901623991,0.885565,155.69,155.68,6.42343268]
[1748901626995,0.885565,155.69,155.68,31.84816558]
[1748901627380,0.885565,155.69,155.68,6.42343268]
[1748901627579,0.885565,155.69,155.68,31.84816558]
[1748901627992,0.885565,155.69,155.68,6.42343268]
[1748901629394,0.885565,155.69,155.68,6.56559425]
[1748901629704,0.885565,155.69,155.68,6.42343268]
[1748901629876,0.885565,155.69,155.68,6.56559425]
[1748901630072,0.885565,155.69,155.68,6.84991739]
[1748901630273,0.885565,155.69,155.68,50.92429915]
[1748901632109,0.885565,155.69,155.68,143.42429915]
[1748901633177,0.885565,155.69,155.68,117.99956625]
[1748901633389,0.885565,155.69,155.68,143.42429915]
[1748901636205,12.5,155.78,155.73,18.933972]
[1748901636406,12.5,155.78,155.75,25.4247329]
[1748901636715,12.5,155.78,155.75,18.79181043]
[1748901637199,12.5,155.78,155.74,75.7047329]
[1748901637789,12.5,155.78,155.75,25.4247329]
[1748901638195,12.5,155.78,155.75,47.896643]
[1748901638390,12.5,155.78,155.77,1.78576157]
[1748901638594,0.2,155.79,155.78,18.79181043]
[1748901638797,0.2,155.79,155.78,19.07613357]
[1748901639003,0.2,155.79,155.78,39.07613357]
[1748901639191,1.6131,155.94,155.85,26.0]
[1748901641998,2.5143718,155.98,155.91,6.41395676]
[1748901642304,25.4247329,155.96,155.91,22.44884868]
[1748901642501,2.5143718,155.98,155.92,0.5]
[1748901642841,2.5143718,155.98,155.93,14.52]
[1748901643331,25.4247329,155.96,155.93,14.52]
[1748901643536,25.4247329,155.95,155.93,14.52]
[1748901643814,25.4247329,155.94,155.93,14.52]
[1748901644226,25.4247329,155.94,155.84,128.25017069]
[1748901644227,25.4247329,155.94,155.89,6.41446076]
[1748901644431,26.0,155.96,155.88,6.4151658]
[1748901644619,2.5143718,155.98,155.88,47.87787663]
[1748901644931,25.4247329,155.93,155.88,22.45314373]
[1748901645092,25.4247329,155.97,155.88,22.45314373]
[1748901645093,25.4247329,155.92,155.88,22.45314373]
[1748901645298,25.4247329,155.97,155.88,6.4151658]
[1748901645299,25.4247329,155.91,155.88,6.4151658]
[1748901645734,25.4247329,155.9,155.88,6.4151658]
[1748901646294,25.4247329,155.91,155.88,6.4151658]
[1748901646820,25.4247329,155.9,155.88,6.4151658]
[1748901647526,53.97157123,155.97,155.88,6.4151658]
[1748901647839,25.4247329,155.9,155.88,6.4151658]
[1748901648156,28.5143718,155.98,155.88,22.45314373]
[1748901648314,26.0,155.95,155.88,22.45314373]
[1748901648510,25.4247329,155.9,155.88,22.45314373]
[1748901649018,25.4247329,155.89,155.88,6.4151658]
[1748901649805,25.4247329,155.89,155.87,15.1]
[1748901649806,25.4247329,155.89,155.87,21.51552347]
[1748901650009,1.5527,155.9,155.87,15.1]
[1748901650312,25.4247329,155.88,155.87,15.1]
[1748901650509,50.8494658,155.88,155.87,15.1]
[1748901650710,1.5527,155.9,155.84,98.89652948]
[1748901650912,25.4247329,155.85,155.84,98.89652948]
[1748901651113,25.4247329,155.85,155.84,92.48]
[1748901651835,25.4247329,155.85,155.84,98.89683778]
[1748901652338,25.4247329,155.85,155.84,92.48]
[1748901654129,25.4247329,155.85,155.83,3.4126265]
[1748901654329,25.4247329,155.84,155.83,3.4126265]
[1748901654910,32.41525579,155.88,155.83,3.4126265]
[1748901655135,25.4247329,155.84,155.83,3.4126265]
[1748901655708,31.7014329,155.84,155.83,3.4126265]
[1748901656437,31.7014329,155.84,155.83,9.82987606]
[1748901656438,6.2767,155.84,155.83,9.82987606]
[1748901656646,31.7014329,155.84,155.83,9.82987606]
[1748901657747,25.4247329,155.84,155.83,9.82987606]
[1748901658426,25.4247329,155.87,155.83,9.82987606]
[1748901658833,25.4247329,155.86,155.83,9.82987606]
[1748901659026,25.4247329,155.86,155.83,25.87299997]
[1748901659429,25.4247329,155.85,155.84,0.5]
[1748901660030,6.2756,155.88,155.85,6.41642605]
[1748901660233,6.2756,155.88,155.86,15.1]
[1748901660432,27.5527,155.9,155.86,15.1]
[1748901660736,1.5527,155.9,155.86,15.1]
[1748901660934,6.5043,155.92,155.86,15.1]
[1748901661241,146.4,155.94,155.86,107.5]
[1748901661429,25.4247329,155.93,155.88,25.4247329]
[1748901661743,25.4247329,155.92,155.87,25.4247329]
[1748901661944,25.4247329,155.91,155.87,25.4247329]
[1748901662145,25.4247329,155.91,155.87,22.4546096]
[1748901663255,146.4,155.94,155.87,22.4546096]
[1748901663441,25.4247329,155.91,155.87,22.4546096]
[1748901664032,25.4247329,155.92,155.87,22.4546096]
[1748901664432,25.4247329,155.92,155.88,0.5]
[1748901664877,25.4247329,155.92,155.89,22.45172878]
[1748901665877,1.5864,155.95,155.89,22.45172878]
[1748901666040,25.4247329,155.92,155.89,22.45172878]
[1748901666241,1.5864,155.95,155.89,22.45172878]
[1748901666572,25.4247329,155.92,155.89,22.45172878]
[1748901667652,25.4247329,155.93,155.89,54.52562704]
[1748901667965,25.4247329,155.93,155.9,0.14216157]
[1748901668461,19.251131,156.1,156.03,0.42648471]
[1748901668665,1.617,156.17,156.06,18.64964886]
[1748901668835,25.4247329,156.13,156.06,44.07438176]
[1748901669038,25.4247329,156.14,156.07,0.28432314]
[1748901669248,25.4247329,156.16,156.09,44.3587049]
[1748901669556,25.4247329,156.15,156.1,22.42152465]
[1748901669756,25.4247329,156.15,156.11,15.1]
[1748901670142,0.2629419,156.16,156.11,15.1]
[1748901670344,25.4247329,156.15,156.11,15.1]
[1748901670756,25.4247329,156.14,156.11,15.1]
[1748901671068,25.4247329,156.12,156.07,46.88]
[1748901671361,0.2629419,156.16,156.11,15.1]
[1748901671567,37.3107689,156.12,156.11,15.1]
[1748901671763,0.2629419,156.16,156.11,15.1]
[1748901671942,37.3107689,156.15,156.11,21.5056559]
[1748901672259,37.3107689,156.13,156.11,15.1]
[1748901672564,37.3107689,156.12,156.11,15.1]
[1748901672762,27.35810741,156.12,156.11,15.1]
[1748901673374,0.2629419,156.16,156.11,15.1]
[1748901673661,27.35810741,156.12,156.11,15.1]
[1748901674073,0.2629419,156.16,156.11,15.1]
[1748901674367,27.35810741,156.13,156.11,15.1]
[1748901674864,0.2629419,156.16,156.11,15.1]
[1748901675073,27.35810741,156.12,156.11,15.1]
[1748901675247,0.2629419,156.16,156.11,21.50572909]
[1748901675442,27.35810741,156.13,156.11,21.50572909]
[1748901675846,27.35810741,156.13,156.11,15.1]
[1748901676240,0.2629419,156.16,156.11,15.1]
[1748901676444,27.35810741,156.12,156.11,15.1]
[1748901677161,27.35810741,156.13,156.11,15.1]
[1748901677956,6.66677057,156.16,156.11,15.1]
[1748901678188,27.35810741,156.13,156.11,15.1]
[1748901678683,6.66677057,156.16,156.11,21.50573876]
[1748901678684,0.2629419,156.16,156.11,21.50573876]
[1748901679040,27.35810741,156.13,156.11,15.1]
[1748901679240,0.2629419,156.16,156.11,21.50562346]
[1748901679461,27.35810741,156.12,156.11,21.50562346]
[1748901679675,27.35810741,156.12,156.11,15.1]
[1748901680154,6.40415653,156.15,156.11,15.1]
[1748901680362,6.66675919,156.16,156.11,15.1]
[1748901680540,27.35810741,156.12,156.11,15.1]
[1748901681766,27.35810741,156.12,156.04,92.38]
[1748901681767,54.71621482,156.12,156.06,14.82]
[1748901681951,27.35810741,156.07,156.06,14.82]
[1748901682151,33.76548871,156.07,156.06,14.82]
[1748901682356,27.35810741,156.07,156.06,14.82]
[1748901683046,6.4073813,156.07,156.04,92.38]
[1748901683246,27.35810741,156.05,156.01,14.82]
[1748901683547,27.35810741,156.02,156.01,21.22984552]
[1748901683745,6.40705364,156.08,156.01,21.22984552]
[1748901683746,27.35810741,156.03,156.01,21.22984552]
[1748901683954,27.35810741,156.05,156.01,21.22984552]
[1748901684146,6.4143,156.09,156.01,37.25445932]
[1748901684354,27.35810741,156.06,156.01,64.61256673]
[1748901684582,6.4143,156.09,156.04,26.0]
[1748901684745,6.7874726,156.12,156.05,27.35810741]
[1748901685066,27.35810741,156.1,156.05,27.35810741]
[1748901685267,27.35810741,156.09,156.04,27.35810741]
[1748901685770,27.35810741,156.08,156.03,53.35810741]
[1748901686272,27.35810741,156.08,156.04,6.40861317]
[1748901687266,0.2629419,156.09,156.04,22.43014611]
[1748901687472,27.35810741,156.08,156.04,22.43014611]
[1748901688662,27.62104931,156.09,156.04,22.43014611]
[1748901689043,0.2629419,156.09,156.04,49.78825352]
[1748901689245,27.62104931,156.09,156.04,49.78825352]
[1748901689446,27.35810741,156.08,156.04,22.43014611]
[1748901689652,0.2629419,156.09,156.04,22.43014611]
[1748901689870,27.62104931,156.09,156.04,22.43014611]
[1748901690062,27.62104931,156.09,156.04,49.78825352]
[1748901690379,27.62104931,156.09,156.04,22.43014611]
[1748901691482,0.2629419,156.09,156.05,18.933972]
[1748901691775,0.2629419,156.09,156.05,46.29207941]
[1748901692452,0.2629419,156.09,156.06,22.42727155]
[1748901694285,0.2629419,156.09,156.08,27.35810741]
[1748901694496,0.2629419,156.09,156.08,48.58507819]
[1748901694774,0.2629419,156.09,156.08,21.22697078]
[1748901697649,0.2629419,156.09,156.08,67.51905019]
[1748901701181,0.2629419,156.09,156.08,40.16094278]
[1748901701356,0.2629419,156.09,156.08,21.22697078]
[1748901701687,0.2629419,156.09,156.08,48.58507819]
[1748901703057,0.2629419,156.09,156.08,21.22697078]
[1748901703899,0.2629419,156.09,156.08,48.58507819]
[1748901704257,0.2629419,156.09,156.08,67.51905019]
[1748901706666,0.2629419,156.09,156.08,21.22697078]
[1748901706866,0.2629419,156.09,156.08,48.58507819]
[1748901707185,0.2629419,156.09,156.08,39.68804618]
[1748901707971,0.2629419,156.09,156.08,6.40697078]
[1748901708173,0.2629419,156.09,156.08,68.06697078]
[1748901708681,0.2629419,156.09,156.08,86.52804618]
[1748901709764,0.2629419,156.09,156.08,68.06697078]
[1748901710181,0.2629419,156.09,156.08,86.52804618]
[1748901712369,0.2629419,156.09,156.08,105.60417975]
[1748901713193,0.2629419,156.09,156.08,87.14310435]
[1748901713486,0.2629419,156.09,156.08,105.60417975]
[1748901714268,0.2629419,156.09,156.08,67.86697078]
[1748901715366,0.2629419,156.09,156.08,86.32804618]
[1748901715982,0.2629419,156.09,156.08,21.32697078]
[1748901718979,18.7240173,156.09,156.08,14.92]
[1748901719506,18.7240173,156.09,156.08,21.32697078]
[1748901720505,0.2629419,156.09,156.08,21.32697078]
[1748901721007,0.2629419,156.09,156.08,39.78804618]
[1748901722521,146.4,156.18,156.08,60.52447975]
[1748901722697,20.0684754,156.19,156.15,6.40409862]
[1748901722885,1.6074,156.19,156.16,33.3810754]
[1748901723282,1.6074,156.19,156.16,14.92]
[1748901723998,20.0684754,156.19,156.16,14.92]
[1748901724194,18.4610754,156.17,156.15,6.40409862]
[1748901724394,18.4610754,156.16,156.15,21.30409862]
[1748901725313,1.6074,156.19,156.15,14.9]
[1748901725507,18.4610754,156.16,156.15,14.9]
[1748901725985,18.4610754,156.18,156.15,14.9]
[1748901726503,1.6074,156.19,156.15,14.9]
[1748901726700,18.4610754,156.21,156.17,22.41147466]
[1748901726917,147.9187,156.23,156.17,40.87255006]
[1748901727124,18.4610754,156.22,156.17,40.87255006]
[1748901727299,27.31926371,156.21,156.17,22.41147466]
[1748901727495,147.9187,156.23,156.17,49.73073837]
[1748901727804,27.31926371,156.21,156.17,49.73073837]
[1748901728012,27.31926371,156.21,156.17,79.73073837]
[1748901728229,147.9187,156.23,156.17,79.73073837]
[1748901728618,27.31926371,156.22,156.17,79.73073837]
[1748901728948,147.9187,156.23,156.17,52.41147466]
[1748901729226,27.31926371,156.21,156.17,52.41147466]
[1748901730117,27.31926371,156.22,156.17,79.73073837]
[1748901730431,147.9187,156.23,156.17,79.73073837]
[1748901730754,27.31926371,156.21,156.17,79.73073837]
[1748901730932,27.31926371,156.22,156.17,79.73073837]
[1748901731230,27.31926371,156.22,156.18,27.31926371]
[1748901731529,27.31926371,156.22,156.18,57.31926371]
[1748901731926,1.5187,156.23,156.19,22.4086049]
[1748901732116,28.83796371,156.23,156.19,49.72786861]
[1748901732318,6.5022,156.24,156.2,27.31926371]
[1748901732719,2.5143718,156.26,156.19,98.8486049]
[1748901732720,2.5143718,156.26,156.22,27.31926371]
[1748901732911,2.5143718,156.26,156.19,98.8486049]
[1748901732912,2.5143718,156.26,156.23,14.9]
[1748901733409,27.31926371,156.24,156.23,14.9]
[1748901733621,27.31926371,156.25,156.23,14.9]
[1748901734218,2.5143718,156.26,156.23,21.30079617]
[1748901734419,29.83363551,156.26,156.23,21.30079617]
[1748901734651,27.31926371,156.25,156.23,21.30079617]
[1748901735138,2.5143718,156.26,156.23,14.9]
[1748901735139,27.31926371,156.24,156.23,14.9]
[1748901736149,27.31926371,156.24,156.21,14.64]
[1748901736448,8.91401394,156.26,156.21,14.64]
[1748901736739,27.31926371,156.22,156.21,14.64]
[1748901737654,33.93516371,156.22,156.21,14.64]
[1748901737818,40.33639274,156.22,156.21,14.64]
[1748901738321,41.84059274,156.22,156.21,14.64]
[1748901738517,41.84059274,156.22,156.11,16.01370934]
[1748901738716,27.31926371,156.12,156.11,14.64]
[1748901739460,146.4,156.21,156.11,21.04573954]
[1748901739623,27.31926371,156.2,156.15,27.31926371]
[1748901739821,27.31926371,156.2,156.11,67.48573954]
[1748901739822,27.31926371,156.18,156.11,83.50008839]
[1748901740034,27.31926371,156.16,156.11,83.50008839]
[1748901740229,27.31926371,156.14,156.11,22.42008839]
[1748901740527,27.31926371,156.2,156.12,14.64]
[1748901740528,1.5547,156.16,156.12,14.64]
[1748901740736,27.31926371,156.13,156.09,92.18]
[1748901740934,1.5547,156.16,156.12,27.31926371]
[1748901741148,27.31926371,156.18,156.13,27.31926371]
[1748901741453,27.31926371,156.17,156.14,14.64]
[1748901741820,27.31926371,156.17,156.09,114.60271038]
[1748901741821,27.31926371,156.15,156.09,114.60271038]
[1748901742126,27.31926371,156.14,156.1,14.64]
[1748901742519,27.31926371,156.13,156.1,14.64]
[1748901742720,27.31926371,156.12,156.1,14.64]
[1748901742947,27.31926371,156.11,156.1,14.64]
[1748901743521,28.97636371,156.11,156.1,14.64]
[1748901743722,1.6571,156.11,156.1,14.64]
[1748901743922,27.31926371,156.12,156.1,21.0461499]
[1748901744230,1.6571,156.2,156.11,27.31926371]
[1748901744439,27.31926371,156.15,156.11,27.31926371]
[1748901744739,27.31926371,156.13,156.1,37.06152465]
[1748901744948,27.31926371,156.15,156.1,64.38078836]
[1748901745327,27.31926371,156.18,156.13,27.31926371]
[1748901745527,148.0571,156.2,156.1,37.06152465]
[1748901745528,27.31926371,156.14,156.11,46.32]
[1748901745722,27.31926371,156.13,156.1,37.06152465]
[1748901745922,27.31926371,156.14,156.1,37.06152465]
[1748901746243,27.31926371,156.11,156.1,21.0461499]
[1748901746426,33.73296371,156.11,156.1,14.64]
[1748901746734,33.73296371,156.11,156.1,21.0461499]
[1748901746930,33.73296371,156.11,156.1,14.64]
[1748901747247,62.64212742,156.11,156.05,21.04820249]
[1748901747460,27.31926371,156.06,156.04,6.40848597]
[1748901747629,8.0036,156.11,156.04,22.43001891]
[1748901747821,27.31926371,156.09,156.04,49.74928262]
[1748901748027,27.31926371,156.05,156.04,6.40848597]
[1748901748328,27.31926371,156.05,156.03,21.0489188]
[1748901748530,27.31926371,156.04,156.03,14.64]
[1748901749157,27.31926371,156.04,156.03,21.0490239]
[1748901749457,6.40680817,156.09,156.03,21.0490239]
[1748901749666,27.31926371,156.04,156.03,21.0490239]
[1748901750170,27.31926371,156.04,156.03,14.64]
[1748901750334,8.0036,156.11,156.03,21.04901588]
[1748901750761,8.0036,156.11,156.03,14.64]
[1748901750762,27.31926371,156.04,156.03,14.64]
[1748901751467,27.31926371,156.04,155.99,98.61033104]
[1748901751773,72.18,156.09,155.99,114.63699941]
[1748901751947,27.31926371,156.02,155.99,114.63699941]
[1748901753259,27.31926371,156.01,155.99,114.63699941]
[1748901753840,146.4,156.08,156.0,27.31926371]
[1748901754046,27.31926371,156.07,156.02,27.31926371]
[1748901754346,146.4,156.08,155.99,170.80870748]
[1748901754347,27.31926371,156.05,156.0,27.31926371]
[1748901754651,27.31926371,156.06,156.01,27.31926371]
[1748901754971,27.31926371,156.06,156.02,6.40943468]
[1748901755171,146.4,156.08,156.02,49.7522851]
[1748901755468,27.31926371,156.1,156.05,27.31926371]
[1748901755771,35.32286371,156.11,156.06,41.95926371]
[1748901756064,27.31926371,156.08,156.06,14.64]
[1748901756283,8.0036,156.11,156.06,14.64]
[1748901756450,35.32286371,156.11,156.06,14.64]
[1748901756651,35.32286371,156.11,156.06,41.95926371]
[1748901756960,35.32286371,156.11,156.07,22.42583455]
[1748901757469,27.31926371,156.09,156.07,6.4073813]
[1748901757667,27.31926371,156.1,156.07,6.4073813]
[1748901757968,35.32286371,156.11,156.07,6.4073813]
[1748901758180,27.31926371,156.12,156.07,49.74509826]
[1748901758390,6.5227,156.15,156.1,27.31926371]
[1748901758592,27.31926371,156.17,156.11,27.31926371]
[1748901758745,27.31926371,156.15,156.1,27.31926371]
[1748901759050,35.48366371,156.2,156.1,6.4061499]
[1748901759051,46.06,156.18,156.1,6.4061499]
[1748901759253,27.31926371,156.14,156.1,6.4061499]
[1748901759548,46.06,156.18,156.1,22.42152465]
[1748901759549,27.31926371,156.13,156.1,22.42152465]
[1748901760278,27.31926371,156.12,156.1,22.42152465]
[1748901760646,27.31926371,156.12,156.1,6.4061499]
[1748901760841,46.0,156.14,156.07,81.78141622]
[1748901761070,73.29926371,156.14,156.09,27.31926371]
[1748901761477,27.31926371,156.15,156.1,27.31926371]
[1748901761772,27.31926371,156.18,156.12,27.31926371]
[1748901761980,8.1644,156.2,156.09,26.28432314]
[1748901761981,27.31926371,156.19,156.14,27.31926371]
[1748901762478,54.1044,156.2,156.13,41.95926371]
[1748901762650,27.31926371,156.18,156.13,41.95926371]
[1748901762852,6.5227,156.2,156.15,27.31926371]
[1748901763052,27.31926371,156.21,156.14,54.43832457]
[1748901763252,27.31926371,156.18,156.14,22.4157807]
[1748901764156,45.84,156.22,156.14,6.40450877]
[1748901764157,27.31926371,156.15,156.14,6.40450877]
[1748901765459,27.31926371,156.15,156.13,21.04479266]
[1748901765780,27.31926371,156.14,156.13,21.04479266]
[1748901765980,6.5618,156.17,156.13,14.64]
[1748901766157,146.4,156.21,156.14,27.31926371]
[1748901766361,27.31926371,156.18,156.13,64.37635004]
[1748901767049,198.7418,156.22,156.13,64.37635004]
[1748901767255,27.31926371,156.18,156.13,64.37635004]
[1748901769476,27.31926371,156.16,156.13,37.05708633]
[1748901769793,45.66,156.19,156.13,37.05708633]
[1748901769794,27.31926371,156.17,156.13,37.05708633]
[1748901770082,27.31926371,156.15,156.13,37.05708633]
[1748901770282,45.66,156.19,156.13,37.05708633]
[1748901770582,27.31926371,156.16,156.13,37.05708633]
[1748901771074,27.31926371,156.15,156.13,37.05708633]
[1748901771273,45.66,156.19,156.13,21.04478889]
[1748901771274,27.31926371,156.14,156.13,21.04478889]
[1748901771474,27.31926371,156.15,156.13,21.04478889]
[1748901771864,27.31926371,156.14,156.13,6.40478889]
[1748901772986,27.31926371,156.14,156.12,16.01330022]
[1748901773165,27.31926371,156.13,156.1,6.4061499]
[1748901773364,27.31926371,156.14,156.1,22.42152465]
[1748901774068,72.79926371,156.15,156.1,49.74078836]
[1748901774261,152.9618,156.22,156.1,49.74078836]
[1748901774262,27.31926371,156.18,156.13,27.31926371]
[1748901774463,27.31926371,156.17,156.12,27.31926371]
[1748901774674,45.42,156.19,156.1,22.42152465]
[1748901774675,27.31926371,156.15,156.1,22.42152465]
[1748901774877,45.42,156.19,156.1,49.74078836]
[1748901774878,27.31926371,156.14,156.1,49.74078836]
[1748901775682,27.31926371,156.14,156.1,22.42152465]
[1748901775890,45.44,156.15,156.1,49.74078836]
[1748901776073,72.75926371,156.15,156.1,49.74078836]
[1748901776686,27.31926371,156.15,156.1,49.74078836]